fUSD/lending_fUSD_20251223
["ID","MTS","AMOUNT","RATE_DAILY","PERIOD"]
[399566223,1766491843370,-6747.0,0.00015837,2]
[399566224,1766491843379,-173.51,0.00016,2]
[399566225,1766491843388,-17588.0,0.00016,2]
[399566226,1766491843398,-617.40005154,0.00016008,2]
[399566227,1766491843407,-485.0,0.00016213,2]
[399566228,1766491843417,-207.4,0.00016241,2]
[399566229,1766491843426,-334.5472959,0.00016281,2]
[399566230,1766491843436,-1108.0,0.00016281,2]
[399566231,1766491843445,-1000.0,0.00016316,2]
[399566232,1766491843455,-500.0,0.00016438,2]
[399566233,1766491843464,-193.75629785,0.00016438,2]
[399566234,1766491843475,-500.0,0.00016438,2]
[399566235,1766491843484,-500.0,0.00016438,2]
[399566236,1766491843494,-500.0,0.00016438,2]
[399566237,1766491843504,-500.0,0.00016438,2]
[399566238,1766491843514,-500.0,0.00016438,2]
[399566239,1766491843523,-500.0,0.00016438,2]
[399566240,1766491843533,-500.0,0.00016438,2]
[399566241,1766491843542,-500.0,0.00016438,2]
[399566242,1766491843552,-500.0,0.00016438,2]
[399566243,1766491843562,-500.0,0.00016438,2]
[399566244,1766491843572,-500.0,0.00016438,2]
[399566245,1766491843581,-500.0,0.00016438,2]
[399566246,1766491843590,-500.0,0.00016438,2]
[399566247,1766491843599,-500.0,0.00016438,2]
[399566248,1766491843619,-8697.08,0.00016438,2]
[399566249,1766491843630,-640.24385345,0.00016556,2]
[399566250,1766491843640,-4024.22,0.00016584,2]
[399566251,1766491843651,-865.194142,0.0001666,2]
[399566252,1766491843661,-64148.0049409,0.00016995,2]
[399566253,1766491843671,-1823.1704548,0.00016995,2]
[399566254,1766491843683,-851.79408692,0.00017,2]
[399566255,1766491843696,-109182.18775611,0.00017,2]
[399566256,1766491843708,-17257.1212,0.00017,2]
[399566257,1766491843719,-42850.62634397,0.00017,2]
[399566258,1766491843732,-282.36355332,0.00017,2]
[399566259,1766491843747,-18159.32056425,0.00017,2]
[399566260,1766491843758,-428.03955324,0.00017,2]
[399566261,1766491845612,-607.30689385,0.00017,2]
[399566262,1766491845665,-869.29227437,0.00017,2]
[399566263,1766491845679,-613.8076229,0.00017,2]
[399566264,1766491845705,-231.25314845,0.00017,2]
[399566265,1766491845721,-1240.26619897,0.00017,2]
[399566266,1766491845886,-2147.1,0.00017,2]
[399566267,1766491845939,-12305.62174631,0.00017,2]
[399566268,1766491845951,-1338.67452469,0.00017,2]
[399566269,1766491845965,-1169.3192,0.00017,2]
[399566273,1766491858419,350.831,0.00012975,2]
[399566274,1766491986985,165.6761,0.00012975,2]
[399566275,1766492230719,2074.16655018,0.000138,3]
[399566276,1766492230744,3451.83344982,0.000138,3]
[399566277,1766492354091,5526.0,0.000139,5]
[399566282,1766492759703,1195.31898644,8e-05,2]
[399566283,1766492759729,2350.23441356,8e-05,2]
[399566311,1766493031717,-574.862,0.00013034,2]
[399566312,1766493031726,-257.0,0.00013034,2]
[399566313,1766493031735,-936.29229397,0.00013192,2]
[399566314,1766493031744,-150.0,0.00013199,2]
[399566315,1766493031754,-454.94212776,0.00013199,2]
[399566316,1766493031762,-327.40110584,0.00013199,2]
[399566317,1766493031771,-340.343023,0.00013199,2]
[399566318,1766493031782,-38.46976387,0.00013199,2]
[399566319,1766493031791,-681.43526959,0.000132,2]
[399566320,1766493031799,-474.4029156,0.000132,2]
[399566321,1766493031808,-1415.25192934,0.000132,2]
[399566322,1766493031826,-776.32440645,0.000132,2]
[399566323,1766493031836,-545.35015898,0.000132,2]
[399566324,1766493031847,-9916.35043495,0.000132,2]
[399566325,1766493031858,-15408.82546552,0.000132,2]
[399566326,1766493031882,-2653.7957141,0.000132,2]
[399566336,1766493037743,-178.64223442,0.00013192,2]
[399566337,1766493037754,-398.37115303,0.000132,2]
[399566338,1766493037851,-13757.4941725,0.000132,2]
[399566360,1766493042870,-1888.0,0.000132,2]
[399566361,1766493043087,-726.83020321,0.000132,2]
[399566384,1766493045889,-7952.77,0.000132,2]
[399566385,1766493045900,-303.8,0.000132,2]
[399566386,1766493045911,-585.4806,0.000132,2]
[399566387,1766493045922,-1115.8401823,0.000132,2]
[399566388,1766493045945,-1354.6537082,0.000132,2]
[399566389,1766493046165,-522.02000001,0.000132,2]
[399566413,1766493119586,1006.74,0.00011,2]
[399566416,1766494050621,-150.0,0.00012925,2]
[399566423,1766494231813,-440.56810984,0.00012936,2]
[399566424,1766494231825,-851.70889016,0.00012936,2]
[399566425,1766494231835,-1519.39462438,0.00013,2]
[399566426,1766494231845,-406.63107054,0.00013,2]
[399566427,1766494231855,-210.15865064,0.00013,2]
[399566428,1766494231864,-178.64223442,0.00013,2]
[399566429,1766494231874,-151.0,0.00013096,2]
[399566430,1766494231884,-151.0,0.00013096,2]
[399566431,1766494231895,-1071.73038494,0.00013096,2]
[399566432,1766494231978,-128.26961506,0.00013096,2]
[399566433,1766494231987,-150.0,0.00013097,2]
[399566434,1766494231996,-300.0,0.00013097,2]
[399566435,1766494232006,-300.0,0.00013097,2]
[399566436,1766494232017,-300.0,0.00013097,2]
[399566437,1766494232027,-189.89561481,0.00013098,2]
[399566438,1766494232039,-500.0,0.00013098,2]
[399566440,1766494232048,-186.58320015,0.00013098,2]
[399566442,1766494232058,-216.36805598,0.00013098,2]
[399566444,1766494232067,-500.0,0.00013098,2]
[399566446,1766494232076,-407.6376526,0.00013098,2]
[399566447,1766494232088,-500.0,0.00013098,2]
[399566448,1766494232098,-500.0,0.00013098,2]
[399566449,1766494232107,-500.0,0.00013098,2]
[399566450,1766494232117,-500.0,0.00013098,2]
[399566451,1766494232126,-383.84959617,0.00013098,2]
[399566452,1766494232136,-500.0,0.00013098,2]
[399566453,1766494232145,-500.0,0.00013098,2]
[399566454,1766494232155,-500.0,0.00013098,2]
[399566455,1766494232164,-500.0,0.00013098,2]
[399566456,1766494232174,-500.0,0.00013098,2]
[399566457,1766494232183,-500.0,0.00013098,2]
[399566459,1766494232192,-500.0,0.00013098,2]
[399566460,1766494232201,-500.0,0.00013098,2]
[399566461,1766494232211,-500.0,0.00013098,2]
[399566462,1766494232220,-500.0,0.00013098,2]
[399566463,1766494232230,-500.0,0.00013098,2]
[399566464,1766494232239,-500.0,0.00013098,2]
[399566465,1766494232248,-500.0,0.00013098,2]
[399566466,1766494232257,-500.0,0.00013098,2]
[399566467,1766494232267,-500.0,0.00013098,2]
[399566468,1766494232276,-500.0,0.00013098,2]
[399566469,1766494232286,-500.0,0.00013098,2]
[399566470,1766494232295,-500.0,0.00013098,2]
[399566471,1766494232304,-500.0,0.00013098,2]
[399566472,1766494232313,-500.0,0.00013098,2]
[399566473,1766494232322,-500.0,0.00013098,2]
[399566474,1766494232331,-500.0,0.00013098,2]
[399566475,1766494232340,-500.0,0.00013098,2]
[399566476,1766494232350,-500.0,0.00013098,2]
[399566477,1766494232359,-500.0,0.00013098,2]
[399566478,1766494232368,-359.09491477,0.00013098,2]
[399566479,1766494232379,-140.90508523,0.00013098,2]
[399566480,1766494232388,-556.77747129,0.00013098,2]
[399566481,1766494232398,-500.0,0.00013098,2]
[399566482,1766494232407,-500.0,0.00013098,2]
[399566483,1766494232416,-500.0,0.00013098,2]
[399566484,1766494232425,-500.0,0.00013098,2]
[399566485,1766494232434,-500.0,0.00013098,2]
[399566486,1766494232443,-500.0,0.00013098,2]
[399566487,1766494232452,-500.0,0.00013098,2]
[399566488,1766494232462,-500.0,0.00013098,2]
[399566489,1766494232471,-600.0,0.00013098,2]
[399566490,1766494232481,-918.8,0.00013098,2]
[399566491,1766494232490,-53462.41675779,0.00013099,2]
[399566492,1766494232501,-68817.93774717,0.00013099,2]
[399566493,1766494232512,-32386.80329346,0.00013099,2]
[399566497,1766494238040,-500.0,0.00013099,2]
[399566498,1766494238051,-140408.45886317,0.00013099,2]
[399566499,1766494238063,-3275.40696767,0.00013099,2]
[399566500,1766494238075,-455.08116405,0.00013099,2]
[399566560,1766494243118,-1097.0,0.00013099,2]
[399566561,1766494243286,-522.07369526,0.00013099,2]
[399566563,1766494243398,-598.1228073,0.00013099,2]
[399566569,1766494245961,-338.7995219,0.00013099,2]
[399566570,1766494245986,-437.20501745,0.00013099,2]
[399566571,1766494246017,-79083.41073112,0.00013099,2]
[399566572,1766494246237,-500.0,0.00013099,2]
[399566575,1766494264072,591.0,0.00012,5]
[399566576,1766494266761,441.64006783,0.000226,120]
[399566577,1766494512148,256.3,0.00022,30]
[399566578,1766494637556,171.51,7.351e-05,2]
[399566579,1766494637775,171.51,9.189e-05,2]
[399566580,1766494834114,-162.702,0.00011027,2]
[399566581,1766494834204,-8.808,0.00011027,2]
[399566582,1766494834230,-160.078,0.00011027,2]
[399566583,1766494834338,-79.922,0.00011027,2]
[399566584,1766494960436,157.06139656,0.00010982,2]
[399566585,1766494960460,604.60423607,0.00010982,2]
[399566693,1766495300321,507.77708842,0.00010981,2]
[399566694,1766495320991,1949.0,0.000138,3]
[399566704,1766495431995,-300.0,0.00011081,2]
[399566705,1766495432004,-1200.0,0.00011081,2]
[399566707,1766495432014,-241.0,0.00011081,2]
[399566709,1766495432023,-231.52741002,0.00011082,2]
[399566711,1766495432033,-231.52741002,0.00011082,2]
[399566712,1766495432042,-231.52741002,0.00011082,2]
[399566713,1766495432051,-231.52741002,0.00011082,2]
[399566714,1766495432061,-231.52741002,0.00011082,2]
[399566715,1766495432070,-231.52741002,0.00011082,2]
[399566716,1766495432079,-231.52741002,0.00011082,2]
[399566717,1766495432089,-231.52741002,0.00011082,2]
[399566718,1766495432098,-2241.0,0.00011706,2]
[399566719,1766495432108,-507.77708841,0.0001189,2]
[399566720,1766495432118,-1000.0,0.00012127,2]
[399566721,1766495432128,-150.0,0.00012127,2]
[399566722,1766495432137,-420.0,0.00012176,2]
[399566723,1766495432147,-673.08301119,0.00012189,2]
[399566724,1766495432159,-1006.91698881,0.00012189,2]
[399566725,1766495432171,-195.0,0.00012189,2]
[399566726,1766495432180,-500.0,0.00012493,2]
[399566727,1766495432189,-150.0,0.00012651,2]
[399566728,1766495432198,-1998.0,0.00012727,2]
[399566729,1766495432207,-255.57568975,0.00012753,2]
[399566730,1766495432237,-1149.42431025,0.00012753,2]
[399566731,1766495432248,-33.36842452,0.00012766,2]
[399566732,1766495432259,-504.0796449,0.00012766,2]
[399566733,1766495432268,-622.0,0.00012778,2]
[399566734,1766495432277,-507.77708841,0.00012799,2]
[399566735,1766495432287,-1800.0,0.000128,2]
[399566736,1766495432296,-210.14463715,0.000128,2]
[399566737,1766495432308,-25.84826285,0.000128,2]
[399566738,1766495432318,-150.0,0.0001281,2]
[399566739,1766495432328,-2966.20217769,0.00012811,2]
[399566740,1766495432346,-517.32449517,0.00012811,2]
[399566742,1766495432357,-5351.0,0.00012811,2]
[399566749,1766495438062,-568.6437948,0.00012811,2]
[399566750,1766495438119,-1276.52476537,0.00012811,2]
[399566751,1766495438229,-373.89027291,0.00012811,2]
[399566752,1766495438244,-3545.62120439,0.00012811,2]
[399566777,1766495440398,-155.12,0.00012127,2]
[399566778,1766495440408,-3788.19228157,0.00012811,2]
[399566779,1766495440418,-428.851795,0.00012811,2]
[399566780,1766495440427,-414.0,0.00012825,2]
[399566781,1766495440437,-242.0,0.0001285,2]
[399566782,1766495440447,-171.51,0.00012865,2]
[399566783,1766495440456,-500.0,0.00012877,2]
[399566784,1766495440465,-231.52741002,0.00012879,2]
[399566785,1766495440474,-550.0,0.00012886,2]
[399566786,1766495440484,-200.0,0.00012892,2]
[399566787,1766495440493,-200.0,0.00012892,2]
[399566788,1766495440502,-200.0,0.00012892,2]
[399566789,1766495440512,-500.0,0.00012892,2]
[399566790,1766495440521,-500.0,0.00012892,2]
[399566791,1766495440531,-500.0,0.00012892,2]
[399566792,1766495440540,-500.0,0.00012892,2]
[399566793,1766495440550,-500.0,0.00012892,2]
[399566794,1766495440560,-500.0,0.00012892,2]
[399566795,1766495440570,-151.0,0.00012892,2]
[399566796,1766495440579,-151.0,0.00012892,2]
[399566797,1766495440589,-151.0,0.00012892,2]
[399566798,1766495440598,-151.0,0.00012892,2]
[399566799,1766495440607,-151.0,0.00012892,2]
[399566800,1766495440617,-151.0,0.00012892,2]
[399566801,1766495440626,-151.0,0.00012892,2]
[399566802,1766495440635,-151.0,0.00012892,2]
[399566803,1766495440645,-151.0,0.00012892,2]
[399566804,1766495440654,-151.0,0.00012892,2]
[399566805,1766495440665,-151.0,0.00012892,2]
[399566806,1766495440675,-151.0,0.00012897,2]
[399566807,1766495440685,-500.0,0.00012899,2]
[399566808,1766495440695,-191.87480464,0.00012899,2]
[399566809,1766495440705,-500.0,0.00012899,2]
[399566810,1766495440715,-283.81272694,0.00012899,2]
[399566811,1766495440725,-229.47321302,0.00012899,2]
[399566812,1766495440735,-500.0,0.00012899,2]
[399566813,1766495440744,-499.78915515,0.00012899,2]
[399566814,1766495440754,-500.0,0.00012899,2]
[399566815,1766495440763,-500.0,0.00012899,2]
[399566816,1766495440773,-500.0,0.00012899,2]
[399566817,1766495440782,-500.0,0.00012899,2]
[399566818,1766495440792,-500.0,0.00012899,2]
[399566819,1766495440801,-500.0,0.00012899,2]
[399566820,1766495440810,-500.0,0.00012899,2]
[399566821,1766495440819,-500.0,0.00012899,2]
[399566822,1766495440829,-500.0,0.00012899,2]
[399566823,1766495440839,-500.0,0.00012899,2]
[399566824,1766495440850,-500.0,0.00012899,2]
[399566825,1766495440860,-500.0,0.00012899,2]
[399566826,1766495440870,-500.0,0.00012899,2]
[399566827,1766495440880,-500.0,0.00012899,2]
[399566828,1766495440892,-500.0,0.00012899,2]
[399566829,1766495440901,-500.0,0.00012899,2]
[399566830,1766495440910,-500.0,0.00012899,2]
[399566831,1766495440920,-500.0,0.00012899,2]
[399566832,1766495440930,-500.0,0.00012899,2]
[399566833,1766495440939,-500.0,0.00012899,2]
[399566834,1766495440949,-500.0,0.00012899,2]
[399566835,1766495440959,-500.0,0.00012899,2]
[399566836,1766495440969,-500.0,0.00012899,2]
[399566837,1766495440979,-500.0,0.00012899,2]
[399566838,1766495440989,-500.0,0.00012899,2]
[399566839,1766495440998,-500.0,0.00012899,2]
[399566840,1766495441009,-500.0,0.00012899,2]
[399566841,1766495441018,-500.0,0.00012899,2]
[399566842,1766495441030,-400.2250539,0.00012899,2]
[399566845,1766495444170,-99.7749461,0.00012899,2]
[399566846,1766495444183,-500.0,0.00012899,2]
[399566847,1766495444194,-500.0,0.00012899,2]
[399566848,1766495444203,-305.30511417,0.00012899,2]
[399566849,1766495444228,-194.69488583,0.00012899,2]
[399566851,1766495444237,-104.30511418,0.00012899,2]
[399566854,1766495444342,-392.72542093,0.00012899,2]
[399566855,1766495444352,-320.40457907,0.00012899,2]
[399566890,1766495446174,-179.59542093,0.00012899,2]
[399566891,1766495446187,-500.0,0.00012899,2]
[399566892,1766495446197,-500.0,0.00012899,2]
[399566893,1766495446207,-143.30412943,0.00012899,2]
[399566894,1766495446221,-356.69587057,0.00012899,2]
[399566895,1766495446231,-500.0,0.00012899,2]
[399566896,1766495446241,-500.0,0.00012899,2]
[399566897,1766495446253,-158.40138228,0.00012899,2]
[399566898,1766495446335,-341.59861772,0.00012899,2]
[399566899,1766495446346,-500.0,0.00012899,2]
[399566900,1766495446355,-500.0,0.00012899,2]
[399566901,1766495446365,-500.0,0.00012899,2]
[399566902,1766495446374,-500.0,0.00012899,2]
[399566903,1766495446383,-500.0,0.00012899,2]
[399566904,1766495446392,-500.0,0.00012899,2]
[399566905,1766495446401,-500.0,0.00012899,2]
[399566906,1766495446411,-500.0,0.00012899,2]
[399566907,1766495446421,-500.0,0.00012899,2]
[399566908,1766495446430,-500.0,0.00012899,2]
[399566909,1766495446442,-500.0,0.00012899,2]
[399566911,1766495446451,-500.0,0.00012899,2]
[399566912,1766495446460,-500.0,0.00012899,2]
[399566913,1766495446468,-500.0,0.00012899,2]
[399566914,1766495446477,-500.0,0.00012899,2]
[399566915,1766495446486,-500.0,0.00012899,2]
[399566916,1766495446495,-500.0,0.00012899,2]
[399566917,1766495446504,-500.0,0.00012899,2]
[399566918,1766495446514,-500.0,0.00012899,2]
[399566919,1766495446523,-156.13804385,0.00012899,2]
[399566920,1766495446532,-500.0,0.00012899,2]
[399566921,1766495446541,-500.0,0.00012899,2]
[399566922,1766495446550,-500.0,0.00012899,2]
[399566923,1766495446560,-500.0,0.00012899,2]
[399566924,1766495446568,-500.0,0.00012899,2]
[399566925,1766495446577,-500.0,0.00012899,2]
[399566926,1766495446587,-500.0,0.00012899,2]
[399566927,1766495446596,-500.0,0.00012899,2]
[399566928,1766495446605,-500.0,0.00012899,2]
[399566929,1766495446614,-500.0,0.00012899,2]
[399566930,1766495446623,-500.0,0.00012899,2]
[399566931,1766495446632,-500.0,0.00012899,2]
[399566932,1766495446641,-500.0,0.00012899,2]
[399566933,1766495446651,-500.0,0.00012899,2]
[399566934,1766495446660,-500.0,0.00012899,2]
[399566935,1766495446669,-500.0,0.00012899,2]
[399566936,1766495446678,-500.0,0.00012899,2]
[399566937,1766495446688,-500.0,0.00012899,2]
[399566938,1766495446697,-500.0,0.00012899,2]
[399566939,1766495446706,-500.0,0.00012899,2]
[399566940,1766495446715,-649.99999999,0.00012899,2]
[399566941,1766495446725,-1355.86,0.00012899,2]
[399566942,1766495446734,-500.0,0.00012899,2]
[399566943,1766495446743,-500.0,0.00012899,2]
[399566944,1766495446752,-500.0,0.00012899,2]
[399566945,1766495446761,-500.0,0.00012899,2]
[399566946,1766495446771,-500.0,0.00012899,2]
[399566947,1766495446780,-500.0,0.00012899,2]
[399566948,1766495446789,-500.0,0.00012899,2]
[399566949,1766495446798,-48894.02398611,0.000129,2]
[399566950,1766495446810,-55648.98439282,0.000129,2]
[399566951,1766495446821,-29415.62555829,0.000129,2]
[399566952,1766495446832,-105525.39004889,0.000129,2]
[399566956,1766495698715,-437.99,0.00011876,2]
[399566957,1766495698739,-3240.0,0.00011876,2]
[399566958,1766495698763,-166.2,0.00012491,2]
[399566959,1766495698786,-1402.569,0.00012642,2]
[399566960,1766495698810,-170.007,0.00012642,2]
[399566961,1766495698833,-250.0,0.00012651,2]
[399566962,1766495699213,-300.0,0.0001281,2]
[399566963,1766495699238,-4369.47354244,0.00012811,2]
[399566964,1766495699265,-209.28462429,0.00012811,2]
[399566965,1766495699290,-16548.65909271,0.00012811,2]
[399566966,1766495699314,-582.80672416,0.00012811,2]
[399566967,1766495699338,-151.0,0.00012892,2]
[399566968,1766495699362,-258.06457215,0.00012892,2]
[399566969,1766495699386,-151.0,0.00012892,2]
[399566970,1766495699413,-151.0,0.00012892,2]
[399566971,1766495699437,-151.0,0.00012892,2]
[399566972,1766495699461,-151.0,0.00012892,2]
[399566973,1766495699485,-151.0,0.00012892,2]
[399566974,1766495699508,-151.0,0.00012892,2]
[399566975,1766495699532,-151.0,0.00012892,2]
[399566976,1766495699555,-151.0,0.00012892,2]
[399566977,1766495699578,-151.0,0.00012892,2]
[399566978,1766495699601,-151.0,0.00012892,2]
[399566979,1766495699623,-151.0,0.00012897,2]
[399566980,1766495699653,-500.0,0.00012899,2]
[399566981,1766495699679,-500.0,0.00012899,2]
[399566982,1766495699704,-500.0,0.00012899,2]
[399566983,1766495699730,-250.0,0.00012899,2]
[399566984,1766495699755,-500.0,0.00012899,2]
[399566985,1766495699780,-500.0,0.00012899,2]
[399566986,1766495699806,-500.0,0.00012899,2]
[399566987,1766495699830,-150.0,0.00012899,2]
[399566988,1766495699857,-500.0,0.00012899,2]
[399566989,1766495699883,-500.0,0.00012899,2]
[399566990,1766495699912,-500.0,0.00012899,2]
[399566991,1766495699937,-500.0,0.00012899,2]
[399566992,1766495699964,-350.0,0.00012899,2]
[399566993,1766495699993,-50902.94544425,0.000129,2]
[399566995,1766496152337,2000.0,0.000226,120]
[399567003,1766496401496,1348.51008448,0.0002,30]
[399567004,1766496411321,999.0,0.00012028,3]
[399567017,1766496603452,168.0,0.00021984,120]
[399567025,1766496632553,-867.29465335,0.00011876,2]
[399567026,1766496632565,-473.32,0.00011876,2]
[399567027,1766496632576,-3880.59534665,0.00011876,2]
[399567028,1766496632586,-247.0,0.00011876,2]
[399567029,1766496632595,-718.72,0.00011972,2]
[399567030,1766496632605,-300.0,0.00012049,2]
[399567031,1766496632614,-1200.0,0.00012049,2]
[399567032,1766496632624,-300.0,0.00012049,2]
[399567033,1766496632633,-2879.87181394,0.0001205,2]
[399567034,1766496632642,-1500.0,0.0001205,2]
[399567035,1766496632654,-200.0,0.0001214,2]
[399567036,1766496632663,-1200.0,0.00012357,2]
[399567037,1766496632672,-151.41,0.00012359,2]
[399567038,1766496632682,-1122.056,0.00012544,2]
[399567039,1766496632691,-135.91331603,0.000127,2]
[399567040,1766496632701,-974.17884844,0.000127,2]
[399567041,1766496632716,-339.75260614,0.000127,2]
[399567042,1766496632737,-2073.29589676,0.000127,2]
[399567043,1766496632749,-515.1447474,0.000127,2]
[399567044,1766496632758,-4291.1552326,0.000127,2]
[399567045,1766496632769,-1482.30532491,0.000127,2]
[399567046,1766496632782,-580.36061433,0.000127,2]
[399567047,1766496632795,-1144.96358765,0.000127,2]
[399567048,1766496632806,-7395.00842394,0.000127,2]
[399567049,1766496632815,-151.0,0.00012792,2]
[399567050,1766496632826,-151.0,0.00012792,2]
[399567051,1766496632835,-151.0,0.00012792,2]
[399567052,1766496632844,-151.0,0.00012792,2]
[399567053,1766496632855,-151.0,0.00012792,2]
[399567054,1766496632864,-151.0,0.00012792,2]
[399567055,1766496632873,-151.0,0.00012792,2]
[399567056,1766496632883,-151.0,0.00012792,2]
[399567057,1766496632892,-151.0,0.00012792,2]
[399567058,1766496632900,-151.0,0.00012792,2]
[399567059,1766496632910,-151.0,0.00012792,2]
[399567060,1766496632920,-151.0,0.00012797,2]
[399567061,1766496632929,-150.0,0.00012798,2]
[399567062,1766496632938,-500.0,0.00012799,2]
[399567063,1766496632947,-500.0,0.00012799,2]
[399567064,1766496632956,-500.0,0.00012799,2]
[399567065,1766496632965,-599.70305351,0.00012799,2]
[399567066,1766496632974,-500.0,0.00012799,2]
[399567067,1766496632983,-500.0,0.00012799,2]
[399567068,1766496632992,-500.0,0.00012799,2]
[399567069,1766496633002,-500.0,0.00012799,2]
[399567070,1766496633011,-500.0,0.00012799,2]
[399567071,1766496633020,-500.0,0.00012799,2]
[399567072,1766496633029,-399.79683248,0.00012799,2]
[399567073,1766496633040,-500.0,0.00012799,2]
[399567074,1766496633050,-500.0,0.00012799,2]
[399567075,1766496633060,-500.0,0.00012799,2]
[399567076,1766496633069,-47157.5524864,0.000128,2]
[399567077,1766496633080,-13174.29693515,0.000128,2]
[399567078,1766496633091,-289.2520557,0.000128,2]
[399567079,1766496633101,-756.71092669,0.000128,2]
[399567080,1766496633112,-1468.67056078,0.000128,2]
[399567081,1766496633123,-14558.57422862,0.000128,2]
[399567082,1766496638220,-781.58281027,0.000127,2]
[399567083,1766496638230,-264.67718973,0.000127,2]
[399567084,1766496638283,-1294.22726958,0.000127,2]
[399567102,1766496638677,-11.37334652,0.000127,2]
[399567105,1766496638688,-675.01067611,0.000127,2]
[399567108,1766496638700,-4996.17459767,0.000127,2]
[399567109,1766496638710,-2170.91425864,0.000128,2]
[399567111,1766496638735,-1986.98446939,0.000128,2]
[399567112,1766496638747,-498.98998669,0.000128,2]
[399567113,1766496638759,-2209.98352126,0.000128,2]
[399567114,1766496638770,-474.71000045,0.000128,2]
[399567115,1766496638783,-2437.99103874,0.000128,2]
[399567116,1766496638797,-1887.99999,0.000128,2]
[399567117,1766496638812,-1377.07327054,0.000128,2]
[399567118,1766496638825,-631.32,0.000128,2]
[399567119,1766496638836,-1616.09048088,0.000128,2]
[399567125,1766496640276,-907302.88579007,0.000128,2]
[399567126,1766496640286,-1000.0,0.000128,2]
[399567127,1766496640296,-500.0,0.00012887,2]
[399567128,1766496640306,-1074.12,0.00012916,2]
[399567129,1766496640315,-4703.15036972,0.00012936,2]
[399567130,1766496640324,-151.0,0.00012987,2]
[399567131,1766496640334,-9980.83,0.00012991,2]
[399567132,1766496640343,-500.0,0.00013014,2]
[399567133,1766496640352,-250.0,0.00013063,2]
[399567134,1766496640362,-300.0,0.00013063,2]
[399567135,1766496640371,-500.0,0.00013064,2]
[399567136,1766496640381,-151.0,0.00013094,2]
[399567137,1766496640390,-151.0,0.00013094,2]
[399567138,1766496640399,-92267.2681788,0.00013097,2]
[399567139,1766496640409,-231.52741002,0.00013153,2]
[399567140,1766496640418,-231.75893743,0.00013153,2]
[399567141,1766496640428,-14893.79318342,0.00013167,2]
[399567142,1766496640438,-7241.46307952,0.00013167,2]
[399567143,1766496640449,-1126.0,0.00013185,2]
[399567144,1766496640458,-328.0,0.00013201,2]
[399567145,1766496640467,-420.0,0.00013227,2]
[399567146,1766496640477,-919.0,0.00013252,2]
[399567147,1766496640487,-1680.0,0.00013254,2]
[399567148,1766496640495,-929.0,0.00013279,2]
[399567149,1766496640505,-437.99,0.0001336,2]
[399567150,1766496640514,-4640.53253872,0.00013521,2]
[399567151,1766496640523,-151.0,0.00013633,2]
[399567152,1766496640532,-151.0,0.00013633,2]
[399567153,1766496640541,-151.0,0.00013633,2]
[399567154,1766496640550,-151.0,0.00013633,2]
[399567155,1766496640559,-151.0,0.00013633,2]
[399567156,1766496640569,-151.0,0.00013633,2]
[399567157,1766496640821,-179.57758,0.00013633,2]
[399567158,1766496640832,-179.57758,0.00013633,2]
[399567159,1766496640842,-151.0,0.00013633,2]
[399567160,1766496640852,-179.57758,0.00013633,2]
[399567161,1766496640862,-250.205093,0.00013633,2]